bitfinex-derivatives/quotes_ETHF0:USTF0_20210703
["timestamp","ask_amount","ask_price","bid_price","bid_amount"]
[1625318985848,4.80977,2225.4,2224.1,1.0]
[1625318986348,2.20527,2224.6,2224.5,2.20527]
[1625318988407,2.20527,2224.6,2224.3,2.20527]
[1625318988856,2.20527,2224.6,2224.3,7e-05]
[1625318988956,2.20527,2224.6,2222.2,1.1]
[1625318989112,2.20527,2224.6,2222.9,14.3312]
[1625318989206,2.20527,2224.6,2222.9,15.3312]
[1625318989558,2.20527,2224.6,2223.1,1.0]
[1625318989909,2.20527,2224.6,2223.3,1.0]
[1625318990260,2.20527,2223.8,2223.7,2.20527]
[1625318990409,1.20527,2223.8,2223.7,2.20527]
[1625318990610,1.20527,2223.8,2223.7,18.427235]
[1625318990860,14.3069,2225.2,2223.7,18.427235]
[1625318991210,1.0,2225.1,2223.7,18.427235]
[1625318992311,2.20527,2224.6,2224.4,2.20527]
[1625318992461,1.0,2224.5,2224.2,2.20527]
[1625318994077,1.0,2224.5,2222.9,14.3312]
[1625318994324,2.20527,2223.9,2223.7,2.20527]
[1625318994424,1.0,2223.8,2223.7,2.20527]
[1625318995432,2.20527,2223.9,2223.7,2.20527]
[1625318995635,2.20527,2224.1,2223.7,2.20527]
[1625318995888,3.20527,2224.1,2223.7,2.20527]
[1625318995985,3.20527,2224.1,2223.8,16.257959]
[1625318997088,3.20527,2224.1,2223.8,19.511759]
[1625318997191,2.20527,2224.1,2223.8,19.511759]
[1625318997538,2.02567,2224.1,2223.8,19.511759]
[1625318998097,1.0,2224.0,2223.8,19.511759]
[1625318998394,1.0,2224.0,2223.9,2.20527]
[1625318999651,1.0,2224.0,2222.9,14.3312]
[1625319000353,3.20527,2223.8,2223.7,2.20527]
[1625319001504,2.988,2225.2,2223.7,3.20527]
[1625319001604,30.616,2225.7,2223.7,5.94617]
[1625319001958,30.616,2225.7,2223.8,16.311856]
[1625319002154,30.616,2225.7,2223.9,1.0]
[1625319002457,2.20527,2225.1,2225.0,2.20527]
[1625319003059,2.20527,2225.1,2225.0,7e-05]
[1625319004408,4.41054,2225.1,2225.0,7e-05]
[1625319005968,15.5385,2225.7,2225.0,7e-05]
[1625319006365,2.20527,2225.2,2225.0,7e-05]
[1625319011475,2.20527,2225.2,2223.0,1.0]
[1625319011974,7.20527,2225.2,2223.0,1.0]
[1625319012078,7.20527,2225.2,2223.1,16.405698]
[1625319012275,7.20527,2225.2,2223.2,1.0]
[1625319012477,2.20527,2223.9,2223.8,2.20527]
[1625319014528,4.41054,2223.9,2223.8,2.20527]
[1625319015995,4.41054,2223.9,2223.4,1.0]
[1625319016245,8.13664,2223.9,2221.5,1.80492077]
[1625319016344,8.13664,2223.9,2222.8,1.0]
[1625319016494,4.41054,2223.0,2222.9,15.3312]
[1625319016852,4.41054,2223.0,2222.9,17.229927]
[1625319017397,2.20527,2223.0,2222.9,17.229927]
[1625319018352,2.20527,2223.0,2222.9,16.229927]
[1625319018450,4.41054,2223.0,2222.5,5.41054]
[1625319019811,4.41054,2223.0,2222.6,16.277701]
[1625319019913,4.41054,2223.0,2222.7,1.0]
[1625319020211,4.41054,2223.0,2222.5,4.41054]
[1625319020411,4.41054,2223.0,2222.6,1.0]
[1625319020513,2.20527,2222.7,2222.6,1.0]
[1625319020816,2.20527,2222.7,2222.6,17.257145]
[1625319024478,2.20527,2222.7,2222.6,1.0]
[1625319024573,2.20527,2222.7,2222.5,4.41054]
[1625319025925,5.00717,2222.7,2222.5,4.41054]
[1625319026476,2.20527,2222.6,2222.5,4.41054]
[1625319027934,2.20527,2222.6,2221.9,1.0]
[1625319028041,5.58327,2222.6,2221.9,1.0]
[1625319028434,5.58327,2222.6,2220.7,0.893]
[1625319028536,4.41054,2222.0,2221.2,3.20527]
[1625319028634,4.41054,2222.0,2221.2,1.0]
[1625319029135,7.08754,2222.0,2221.2,1.0]
[1625319029336,7.08754,2222.0,2220.3,14.1485]
[1625319029585,7.08754,2222.0,2220.7,1.0]
[1625319029936,7.08754,2222.0,2220.8,16.227726]
[1625319030037,7.08754,2222.0,2220.9,1.0]
[1625319030388,7.08754,2222.0,2221.1,1.0]
[1625319030537,2.677,2222.0,2221.1,1.0]
[1625319030636,3.378,2222.6,2221.1,1.0]
[1625319030741,3.378,2222.6,2221.2,16.298364]
[1625319030940,8.378,2222.6,2221.2,16.298364]
[1625319031187,3.378,2222.6,2221.3,1.0]
[1625319031538,3.378,2222.6,2220.8,2.20527]
[1625319031638,5.0,2222.5,2221.1,1.0]
[1625319031988,3.378,2222.6,2221.1,1.0]
[1625319032489,4.41054,2221.2,2221.1,1.0]
[1625319032842,4.41054,2221.2,2220.8,2.20527]
[1625319032942,4.41054,2221.2,2220.8,3.20527]
[1625319033442,4.41054,2221.2,2220.9,16.359316]
[1625319033545,4.41054,2221.2,2220.9,17.359316]
[1625319039227,4.41054,2221.2,2220.9,20.495916]
[1625319040430,4.41054,2221.2,2220.9,19.495916]
[1625319040532,4.41054,2221.2,2220.3,15.1485]
[1625319041136,4.41054,2221.2,2220.4,16.43089]
[1625319041232,4.41054,2221.2,2220.4,17.43089]
[1625319042532,4.41054,2220.5,2220.4,17.43089]
[1625319043586,4.41054,2220.5,2219.4,1.82179836]
[1625319043688,4.41054,2220.5,2219.4,2.82179836]
[1625319044237,4.41054,2220.5,2219.6,1.0]
[1625319044587,4.41054,2219.7,2219.6,1.0]
[1625319044886,4.41054,2219.7,2219.6,17.27896]
[1625319044988,3.34368266,2219.7,2219.6,17.27896]
[1625319045288,0.67652573,2219.7,2219.6,17.27896]
[1625319046790,2.20527,2220.0,2219.6,17.27896]
[1625319046940,2.20527,2220.0,2219.6,19.80736]
[1625319047141,14.3238,2222.0,2219.6,19.80736]
[1625319048652,2.20527,2220.5,2220.4,2.20527]
[1625319048751,2.20527,2220.5,2220.4,3.20527]
[1625319048951,2.20527,2220.5,2220.4,19.672205]
[1625319049611,14.3238,2222.0,2220.4,19.672205]
[1625319050670,2.20527,2220.5,2220.4,19.672205]
[1625319050769,2.20527,2220.6,2220.4,19.672205]
[1625319051019,14.8834,2222.1,2220.4,19.672205]
[1625319052121,19.8834,2222.1,2220.4,19.672205]
[1625319052722,2.20527,2220.5,2220.4,19.672205]
[1625319054978,2.749,2221.7,2220.4,19.672205]
[1625319055377,14.8834,2222.1,2220.4,19.672205]
[1625319056629,2.20527,2221.5,2221.4,2.20527]
[1625319056731,1.20527,2221.5,2221.4,2.20527]
[1625319057936,4.06987,2221.5,2221.4,2.20527]
[1625319060341,2.8646,2221.5,2221.4,2.20527]
[1625319060442,3.20527,2221.6,2221.4,2.20527]
[1625319060541,2.20527,2221.6,2221.4,2.20527]
[1625319060692,14.8834,2222.1,2221.4,2.20527]
[1625319060693,1.0,2221.8,2221.4,2.20527]
[1625319061245,2.20527,2221.9,2221.4,2.20527]
[1625319061743,1.0,2221.8,2221.4,2.20527]
[1625319062697,2.20527,2221.5,2221.4,2.20527]
[1625319067519,3.20527,2221.5,2221.2,2.20527]
[1625319068724,2.20527,2221.3,2221.2,2.20527]
[1625319074849,4.4786,2221.4,2221.2,2.20527]
[1625319074950,15.4394,2222.6,2221.2,3.20527]
[1625319075049,14.0731,2223.3,2221.2,5.53997]
[1625319075154,14.0731,2223.3,2221.3,5.0]
[1625319075352,14.0731,2223.3,2221.4,5.759]
[1625319075451,14.0731,2223.3,2221.4,10.759]
[1625319075553,14.0731,2223.3,2221.4,27.046715]
[1625319076404,14.0731,2223.3,2221.4,27.940615]
[1625319076754,14.0731,2223.3,2223.2,4.41054]
[1625319076853,14.0731,2223.3,2223.2,8.82604]
[1625319087346,14.0731,2223.3,2223.2,25.284081]
[1625319087596,11.2031,2223.3,2223.2,25.284081]
[1625319088249,2.20527,2224.3,2223.2,25.284081]
[1625319088849,2.20527,2224.4,2224.2,4.41054]
[1625319088997,2.20527,2224.4,2224.3,1.0]
[1625319089398,2.20527,2224.4,2224.2,6.86534]
[1625319089503,2.20527,2224.4,2224.2,4.41054]
[1625319090560,2.20527,2224.4,2224.2,5.41054]
[1625319090904,2.20527,2224.4,2224.2,4.41054]
[1625319093263,2.20527,2224.4,2224.2,5.41054]
[1625319093363,2.20527,2224.4,2224.2,4.41054]
[1625319093667,2.20527,2224.4,2224.2,5.41054]
[1625319094115,2.20527,2224.4,2224.2,4.41054]
[1625319098938,4.41054,2224.4,2224.2,4.41054]
[1625319099537,4.41054,2224.4,2223.0,1.0]
[1625319099640,7.89154,2224.4,2223.0,1.0]
[1625319100137,7.89154,2224.4,2223.1,16.416324]
[1625319100240,7.89154,2224.4,2223.2,1.0]
[1625319100938,5.68627,2224.4,2224.2,2.20527]
[1625319102998,2.20527,2224.3,2224.2,2.20527]
[1625319105209,2.20527,2224.3,2224.0,2.20527]
[1625319107065,2.20527,2224.3,2224.2,2.20527]
[1625319109727,2.20527,2224.3,2224.2,7e-05]
[1625319109827,2.20527,2224.3,2223.4,1.0]
[1625319109926,5.20737,2224.3,2222.9,14.4298]
[1625319110327,5.20737,2224.3,2223.0,1.0]
[1625319111079,2.20527,2223.6,2223.5,2.20527]
[1625319112549,3.0021,2224.3,2223.5,2.20527]
[1625319113044,2.20527,2223.7,2223.5,2.20527]
[1625319113746,5.06057,2223.7,2223.5,2.20527]
[1625319122523,5.06057,2223.7,2223.2,3.20527]
[1625319122825,5.06057,2223.7,2223.2,2.20527]
[1625319123025,5.06057,2223.7,2222.5,1.0]
[1625319123125,2.20527,2223.1,2222.8,2.20527]
[1625319123224,2.20527,2223.1,2222.8,3.20527]
[1625319123225,4.90917,2223.1,2222.8,3.20527]
[1625319123327,4.90917,2223.1,2222.8,2.20527]
[1625319124127,4.90917,2223.1,2222.6,3.20527]
[1625319124128,4.90917,2223.1,2222.6,1.0]
[1625319124428,4.90917,2223.1,2222.1,15.4992]
[1625319124727,4.90917,2223.1,2221.2,0.8941]
[1625319124939,4.90917,2223.1,2220.8,1.0]
[1625319125039,4.90917,2223.1,2220.8,16.3018]
[1625319125189,1.20527,2222.3,2222.2,2.20527]
[1625319126240,2.20527,2222.3,2222.0,2.20527]
[1625319127144,2.20527,2222.1,2222.0,2.20527]
[1625319129150,4.91697,2222.1,2222.0,2.20527]
[1625319132054,2.20527,2222.1,2222.0,2.20527]
[1625319132257,1.84621405,2224.0,2222.0,2.20527]
[1625319132407,1.84606466,2224.3,2222.0,4.74247]
[1625319132559,1.84606466,2224.3,2222.0,21.07781]
[1625319132762,5.0,2224.1,2222.0,21.07781]
[1625319133207,2.20527,2223.1,2223.0,2.20527]
[1625319135266,4.41054,2223.1,2223.0,2.20527]
[1625319138237,5.41054,2223.1,2223.0,2.20527]
[1625319139900,5.41054,2223.1,2222.8,2.20527]
[1625319140653,5.41054,2223.1,2221.7,15.086]
[1625319141255,2.20527,2222.5,2222.4,2.20527]
[1625319152047,3.20527,2222.5,2222.4,2.20527]
[1625319154801,2.20527,2222.5,2222.4,2.20527]
[1625319156706,2.20527,2222.5,2222.4,5.15907]
[1625319157256,3.20527,2222.5,2222.4,5.15907]
[1625319157556,2.20527,2222.5,2222.4,5.15907]
[1625319157807,3.20527,2222.5,2222.4,5.15907]
[1625319158263,2.20527,2222.5,2222.4,5.15907]
[1625319158915,3.20527,2222.5,2222.4,5.15907]
[1625319160976,3.20527,2222.5,2222.4,2.9538]
[1625319161122,3.20527,2222.5,2221.6,4.759]
[1625319161423,2.20527,2221.7,2221.6,2.20527]
[1625319166662,3.20527,2221.7,2221.6,2.20527]
[1625319168213,2.20527,2221.7,2221.6,2.20527]
[1625319169667,3.20527,2221.7,2221.6,2.20527]
[1625319170120,2.20527,2221.7,2221.6,2.20527]
[1625319170974,3.20527,2221.7,2221.6,2.20527]
[1625319180177,3.20527,2221.7,2221.6,4.55227]
[1625319190255,3.20527,2221.7,2221.6,2.20527]
[1625319191459,3.20527,2221.7,2221.3,2.20527]
[1625319193472,2.20527,2221.4,2221.3,2.20527]
[1625319196480,3.20527,2221.4,2221.3,2.20527]
[1625319212657,6.16817,2221.4,2220.6,1.2998097]
[1625319212757,11.16817,2221.4,2220.6,1.2998097]
[1625319213356,11.16817,2221.4,2220.0,1.30181583]
[1625319213558,2.20527,2220.5,2220.4,2.20527]
[1625319213810,3.20527,2220.5,2220.4,2.20527]
[1625319214710,2.20527,2220.5,2220.4,2.20527]
[1625319215616,4.41054,2220.5,2220.4,2.20527]
[1625319216866,5.41054,2220.5,2220.4,2.20527]
[1625319217467,5.41054,2220.5,2220.2,6.96427]
[1625319217566,5.41054,2220.5,2220.2,4.759]
[1625319218418,5.41054,2220.5,2219.9,3.5074445]
[1625319218920,5.41054,2220.5,2219.9,2.20527]
[1625319219671,4.41054,2220.0,2219.9,2.20527]
[1625319219924,5.41054,2220.0,2219.9,2.20527]
[1625319222984,5.41054,2220.0,2219.7,2.20527]
[1625319223684,5.41054,2220.0,2219.8,16.472903]
[1625319224086,5.41054,2220.0,2219.4,16.390205]
[1625319224336,5.41054,2220.0,2219.9,16.452378]
[1625319224589,5.41054,2220.0,2219.4,16.369464]
[1625319225638,3.20527,2220.0,2219.6,2.20527]
[1625319225738,2.20527,2220.0,2219.6,2.20527]
[1625319225987,2.20527,2220.0,2219.7,16.299879]
[1625319226090,3.20527,2220.0,2219.7,16.299879]
[1625319227642,2.20527,2219.8,2219.7,16.299879]
[1625319227743,3.20527,2219.8,2219.7,16.299879]
[1625319232216,2.20527,2219.8,2219.7,16.299879]
[1625319233524,3.20527,2219.8,2219.7,16.299879]
[1625319239581,6.58417,2219.8,2219.7,16.299879]
[1625319239682,6.58417,2219.8,2219.4,16.365376]
[1625319239786,2.20527,2219.5,2219.4,16.365376]
[1625319239882,3.20527,2219.5,2219.4,16.365376]
[1625319239982,3.20527,2219.5,2219.3,2.20527]
[1625319240182,3.20527,2219.5,2219.4,16.477585]
[1625319241937,2.20527,2219.5,2219.4,16.477585]
[1625319242087,2.20527,2219.5,2219.4,18.918185]
[1625319242341,3.20527,2219.5,2219.4,18.918185]
[1625319244041,2.20527,2219.5,2219.4,18.918185]
[1625319244343,2.20527,2219.8,2219.4,18.918185]
[1625319244493,2.20527,2219.8,2219.4,19.820085]
[1625319244594,2.20527,2219.8,2219.4,18.918185]
[1625319244691,14.7356,2221.0,2219.4,18.918185]
[1625319245246,1.0,2220.9,2219.4,18.918185]
[1625319245343,6.0,2220.9,2219.4,18.918185]
[1625319245843,3.20527,2220.5,2219.4,16.477585]
[1625319246046,3.20527,2220.5,2219.3,4.759]
[1625319246445,3.20527,2220.5,2219.4,16.268494]
[1625319246446,8.20527,2220.5,2219.4,16.268494]
[1625319246796,8.20527,2220.5,2218.8,16.429176]
[1625319247100,8.20527,2220.5,2219.5,16.437918]
[1625319247400,8.20527,2220.5,2218.8,16.260989]
[1625319247749,2.20527,2219.4,2219.3,2.20527]
[1625319248049,2.20527,2219.4,2219.3,18.424273]
[1625319249009,3.20527,2219.4,2219.3,18.424273]
[1625319249863,5.41054,2219.4,2219.3,18.424273]
[1625319250725,5.41054,2219.4,2219.3,16.219003]
[1625319251029,5.41054,2219.4,2218.8,16.477718]
[1625319251325,5.41054,2219.4,2219.3,16.27376]
[1625319251575,5.41054,2219.4,2218.8,16.275042]
[1625319251825,3.20527,2219.4,2219.0,2.20527]
[1625319252129,3.20527,2219.4,2219.1,16.484182]
[1625319253884,3.20527,2219.2,2219.1,16.484182]
[1625319254938,3.20527,2219.2,2219.0,2.20527]
[1625319255640,3.20527,2219.2,2218.8,2.20527]
[1625319255840,2.20527,2218.9,2218.8,2.20527]
[1625319256241,2.20527,2218.9,2218.8,18.698898]
[1625319258097,2.20527,2218.9,2218.8,2.20527]
[1625319259098,2.20527,2218.9,2218.6,2.20527]
[1625319259799,2.20527,2218.7,2218.6,2.20527]
[1625319259900,1.0,2218.6,2218.2,4.759]
[1625319260001,6.0,2218.6,2218.2,4.759]
[1625319260099,1.0,2218.6,2218.2,4.759]
[1625319260452,1.0,2218.6,2217.6,16.20382645]
[1625319260453,1.0,2218.6,2217.6,14.902]
[1625319260849,1.0,2218.6,2216.8,1.30352766]
[1625319261099,1.0,2218.6,2217.7,16.417803]
[1625319261399,1.0,2218.6,2217.5,16.238931]
[1625319261501,1.0,2218.6,2216.6,1.30416934]
[1625319261854,2.20527,2217.0,2216.9,2.20527]
[1625319261955,5.04527,2217.0,2216.9,2.20527]
[1625319262155,5.04527,2217.0,2216.9,18.506703]
[1625319262305,5.04527,2217.0,2216.7,16.280287]
[1625319262306,7e-05,2217.0,2216.7,16.280287]
[1625319262457,7e-05,2217.0,2216.6,2.20527]
[1625319262706,7e-05,2217.0,2216.8,16.408254]
[1625319262909,7e-05,2217.0,2216.7,16.244458]
[1625319263056,7e-05,2217.0,2216.6,2.20527]
[1625319263205,7e-05,2217.0,2216.9,16.259907]
[1625319263507,7e-05,2217.0,2216.7,16.406376]
[1625319263707,7e-05,2217.0,2216.6,2.20527]
[1625319263810,7e-05,2217.0,2216.9,16.351743]
[1625319263907,2.20527,2217.0,2216.9,18.557013]
[1625319264109,2.20527,2217.0,2216.7,16.26016]
[1625319264210,2.20527,2217.0,2216.6,2.20527]
[1625319264419,2.20527,2217.0,2216.9,16.307543]
[1625319264661,2.20527,2217.0,2216.7,16.439279]
[1625319264863,2.20527,2217.0,2216.6,2.20527]
[1625319264960,2.20527,2217.0,2216.9,16.36782]
[1625319265261,2.20527,2217.0,2216.7,16.293082]
[1625319265512,2.20527,2217.0,2216.9,16.315652]
[1625319265812,2.20527,2217.0,2216.7,16.249485]
[1625319265912,4.41054,2217.0,2216.7,16.249485]
[1625319266325,5.41054,2217.0,2216.7,16.249485]
[1625319267030,4.41054,2217.0,2216.7,16.249485]
[1625319269030,7.79464,2217.0,2216.7,16.249485]
[1625319274740,8.79464,2217.0,2216.7,16.249485]
[1625319276893,8.79464,2217.0,2215.8,16.286452]
[1625319277193,7.79464,2217.0,2216.8,16.477531]
[1625319277444,7.79464,2217.0,2216.3,3.3048]
[1625319277595,7.79464,2217.0,2216.4,16.38953]
[1625319277894,7.79464,2217.0,2216.9,2.20527]
[1625319278245,7.79464,2217.0,2216.9,18.635047]
[1625319280028,8.70094,2217.0,2216.9,18.635047]
[1625319280129,7.79464,2217.0,2216.9,18.635047]
[1625319282685,7.79464,2217.0,2216.9,2.20527]
[1625319282786,7.79464,2217.0,2215.7,14.5899]
[1625319282887,1.0,2216.9,2215.7,14.5899]
[1625319283189,7.79464,2217.0,2215.7,14.5899]
[1625319283438,7.79464,2217.0,2215.8,16.398333]
[1625319283937,5.58937,2217.0,2216.5,2.20527]
[1625319284038,2.20527,2217.0,2216.5,2.20527]
[1625319284138,3.20527,2217.0,2216.5,2.20527]
[1625319284239,3.20527,2217.0,2216.6,16.499781]
[1625319284690,2.20527,2217.0,2216.6,16.499781]
[1625319285038,3.20527,2217.0,2216.6,16.499781]
[1625319285389,2.20527,2217.0,2216.6,16.499781]
[1625319285888,1.0,2216.9,2216.6,16.499781]
[1625319285996,2.20527,2216.7,2216.6,16.499781]
[1625319290150,19.1092,2218.6,2216.6,18.847881]
[1625319290348,14.1092,2218.6,2216.6,18.847881]
[1625319291050,1.0,2218.3,2216.6,18.847881]
[1625319292007,2.20527,2217.6,2217.5,2.20527]
[1625319292354,2.20527,2217.6,2217.5,18.543453]
[1625319294031,4.41054,2217.6,2217.5,18.543453]
[1625319305310,4.41054,2217.6,2217.5,22.018353]
[1625319311482,4.41054,2217.6,2217.5,18.543453]
[1625319317491,1.0,2218.3,2217.5,18.543453]
[1625319317591,14.1092,2218.6,2217.5,18.543453]
[1625319317694,1.0,2218.5,2217.5,21.125253]
[1625319318143,2.20527,2218.1,2218.0,2.20527]
[1625319318243,2.20527,2218.1,2218.0,4.73437]
[1625319318594,2.20527,2218.1,2218.0,21.120675]
[1625319319096,1.0,2218.5,2218.0,21.120675]
[1625319319395,14.1092,2218.6,2218.0,21.120675]
[1625319319795,1.0,2218.8,2218.0,21.120675]
[1625319320000,15.3259,2219.9,2218.0,21.120675]
[1625319320196,2.20527,2219.3,2219.2,2.20527]
[1625319321804,3.20527,2219.3,2219.0,2.20527]
[1625319322153,2.20527,2219.1,2219.0,2.20527]
[1625319322604,2.20527,2219.1,2219.0,18.51023]
[1625319324916,3.20527,2219.1,2219.0,18.51023]
[1625319325015,2.20527,2219.1,2219.0,18.51023]
[1625319326316,3.20527,2219.1,2219.0,18.51023]
[1625319328088,3.20527,2219.1,2219.0,16.30496]
[1625319328338,3.20527,2219.1,2218.6,4.41054]
[1625319328448,5.58707,2219.1,2218.6,4.41054]
[1625319328594,5.58707,2219.1,2218.6,2.20527]
[1625319330254,2.20527,2218.7,2218.6,2.20527]
[1625319330350,3.20527,2218.7,2218.6,2.20527]
[1625319330955,2.20527,2218.7,2218.6,2.20527]
[1625319331605,3.20527,2218.7,2218.6,2.20527]
[1625319331707,2.20527,2218.7,2218.6,2.20527]
[1625319332256,3.20527,2218.7,2218.6,2.20527]
[1625319335814,2.20527,2218.7,2218.6,2.20527]
[1625319339799,3.20527,2218.7,2218.6,2.20527]
[1625319341050,3.20527,2218.7,2218.5,2.20527]
[1625319342304,2.20527,2218.6,2218.5,2.20527]
[1625319342402,3.20527,2218.6,2218.5,2.20527]
[1625319343554,2.20527,2218.6,2218.5,2.20527]
[1625319348166,3.20527,2218.6,2218.5,2.20527]
[1625319353093,2.20527,2218.6,2218.5,2.20527]
[1625319358349,2.20527,2218.6,2218.5,4.72027]
[1625319358457,1.3270098,2219.2,2218.5,4.72027]
[1625319358607,1.3270098,2219.2,2219.1,7.71684]
[1625319358807,1.3270098,2219.2,2219.1,24.004781]
[1625319359312,2.20527,2219.5,2219.1,24.004781]
[1625319360612,2.20527,2219.5,2219.4,2.20527]
[1625319360963,2.20527,2219.8,2219.4,18.490332]
[1625319361063,14.9451,2220.0,2219.4,18.490332]
[1625319362563,14.9451,2220.0,2219.9,4.41054]
[1625319362863,14.9451,2220.0,2219.9,20.787131]
[1625319363916,5.7888,2220.0,2219.9,23.918031]
[1625319364118,2.20527,2220.5,2219.9,23.918031]
[1625319364218,1.32492724,2220.8,2219.9,23.918031]
[1625319364419,3.44481083,2221.3,2219.9,23.918031]
[1625319364420,1.32481233,2221.1,2219.9,23.918031]
[1625319364669,1.32481233,2221.1,2221.0,2.20527]
[1625319365173,2.32481233,2221.1,2221.0,2.20527]
[1625319365281,1.32481233,2221.1,2221.0,2.20527]
[1625319365531,4.06000727,2221.2,2221.0,5.33377]
[1625319365532,2.20527,2221.2,2221.0,5.33377]
[1625319366633,4.41054,2221.2,2221.0,5.33377]
[1625319368135,4.41054,2221.2,2221.0,3.1285]
[1625319368237,1.0,2221.1,2219.9,3.1309]
[1625319368335,1.0,2221.1,2219.2,1.1]
[1625319368588,1.0,2221.1,2220.7,2.20527]
[1625319369247,1.0,2221.1,2218.3,1.81313531]
[1625319369347,1.0,2221.1,2218.4,1.29509665]
[1625319369451,1.0,2221.1,2218.4,2.29509665]
[1625319369802,1.0,2221.1,2219.7,16.431911]
[1625319370654,2.20527,2220.2,2220.0,2.20527]
[1625319371204,3.20527,2220.2,2220.0,2.20527]
[1625319372058,2.20527,2220.2,2220.0,2.20527]
[1625319372257,3.20527,2220.2,2220.0,2.20527]
[1625319372659,5.41054,2220.2,2220.0,2.20527]
[1625319372909,4.41054,2220.2,2220.0,2.20527]
[1625319373413,5.41054,2220.2,2220.0,2.20527]
[1625319373614,4.41054,2220.2,2220.0,2.20527]
[1625319374769,3.5416,2220.6,2220.0,2.20527]
[1625319374869,3.5416,2220.6,2220.1,16.295757]
[1625319375219,1.32137578,2221.4,2220.1,16.295757]
[1625319375320,1.0,2221.3,2220.1,16.295757]
[1625319376772,2.20527,2220.6,2220.5,2.20527]
[1625319378674,4.41054,2220.6,2220.5,2.20527]
[1625319378985,4.41054,2220.6,2219.3,3.4076]
[1625319379134,8.33724,2220.6,2218.3,6.29260228]
[1625319379484,8.33724,2220.6,2218.3,5.0]
[1625319380691,8.33724,2220.6,2219.9,2.20527]
[1625319380795,2.20527,2220.0,2219.9,2.20527]
[1625319380942,5.13267,2220.0,2219.9,2.20527]
[1625319382050,5.13267,2220.0,2219.6,17.76127]
[1625319382202,6.13267,2220.0,2217.8,1.29094676]
[1625319382601,11.13267,2220.0,2217.8,1.29094676]
[1625319382700,2.20527,2219.1,2219.0,2.20527]
[1625319382849,4.67967,2219.1,2219.0,2.20527]
[1625319383054,5.67967,2219.1,2219.0,2.20527]
[1625319384505,5.67967,2219.1,2217.7,14.5492]
[1625319384755,2.20527,2218.5,2218.3,2.20527]
[1625319384870,5.10147,2218.5,2218.3,2.20527]
[1625319386410,6.10147,2218.5,2218.3,2.20527]
[1625319386764,3.20527,2218.4,2218.3,2.20527]
[1625319389121,2.20527,2218.4,2218.3,2.20527]
[1625319389270,3.20527,2218.4,2218.3,2.20527]
[1625319389469,2.20527,2218.4,2218.3,2.20527]
[1625319391478,3.20527,2218.4,2218.3,2.20527]
[1625319392342,2.20527,2218.4,2218.3,2.20527]
[1625319392843,3.20527,2218.4,2218.3,2.20527]
[1625319406981,3.20527,2218.4,2218.1,2.20527]
[1625319408995,2.20527,2218.2,2218.1,2.20527]
[1625319409097,3.20527,2218.2,2218.1,2.20527]
[1625319421439,2.20527,2218.2,2218.1,5.36167]
[1625319421546,1.0,2219.1,2218.1,5.36167]
[1625319421845,1.0,2219.1,2218.2,16.390142]
[1625319423051,2.20527,2219.0,2218.9,2.20527]
[1625319423153,3.20527,2219.0,2218.9,2.20527]
[1625319424052,2.20527,2219.0,2218.9,2.20527]
[1625319425053,4.41054,2219.0,2218.9,2.20527]
[1625319427058,8.05514,2219.0,2218.9,2.20527]
[1625319427357,8.05514,2219.0,2217.7,19.3082]
[1625319427460,8.05514,2219.0,2217.7,14.5492]
[1625319427957,8.05514,2219.0,2217.8,16.376672]
[1625319429068,8.05514,2219.0,2218.1,2.20527]
[1625319429167,3.20527,2218.2,2218.1,2.20527]
[1625319429519,3.20527,2218.2,2217.9,2.20527]
[1625319431173,2.20527,2218.0,2217.9,2.20527]
[1625319431324,6.08717,2218.0,2217.9,2.20527]
[1625319433583,6.08717,2218.0,2217.5,2.20527]
[1625319433731,6.08717,2218.0,2216.4,14.8762]
[1625319434281,6.08717,2218.0,2216.5,16.377928]
[1625319435133,2.20527,2217.4,2217.3,2.20527]
[1625319435484,2.20527,2217.4,2217.3,18.553179]
[1625319437134,4.41054,2217.4,2217.3,18.553179]
[1625319443929,2.20527,2217.4,2217.3,22.123279]
[1625319444079,1.0,2217.9,2217.3,22.123279]
[1625319444330,1.32242825,2219.1,2217.3,22.123279]
[1625319444430,1.0,2219.0,2217.3,22.123279]
[1625319445187,2.20527,2218.8,2218.7,2.20527]
[1625319447296,4.41054,2218.8,2218.7,2.20527]
[1625319447746,5.41054,2218.8,2218.7,2.20527]
[1625319447848,4.41054,2218.8,2218.7,2.20527]
[1625319448903,4.41054,2218.8,2218.7,18.665715]
[1625319449359,1.0,2219.3,2218.7,18.665715]
[1625319451265,3.20527,2219.3,2219.2,2.20527]
[1625319453272,5.41054,2219.3,2219.2,2.20527]
[1625319454976,4.41054,2219.3,2219.2,2.20527]
[1625319455827,4.41054,2219.3,2218.7,2.20527]
[1625319455928,6.81044,2219.3,2218.7,2.20527]
[1625319456027,1.0,2219.2,2217.6,4.759]
[1625319456432,1.0,2219.2,2217.4,14.8565]
[1625319456688,1.0,2219.2,2217.7,16.371232]
[1625319456983,1.0,2219.2,2217.5,16.436574]
[1625319457086,1.0,2219.2,2217.4,14.8565]
[1625319457284,1.0,2219.2,2217.8,16.244454]
[1625319457385,4.41054,2217.9,2217.8,16.244454]
[1625319457491,4.41054,2217.9,2217.7,2.20527]